[Event "45th FIDE Olympiad 2024"]
[Site "Budapest"]
[Date "2024.09.12"]
[Round "2.249"]
[White "Prudente, Elmer"]
[Black "Pace, Colin"]
[Result "0-1"]
[ECO "B34"]
[WhiteElo "1949"]
[BlackElo "2186"]
[Annotator "ChessBase"]
[PlyCount "38"]
[EventDate "2024.09.05"]
[EventType "team-tourn"]
[EventCountry "HUN"]
[SourceTitle "playchess.com"]
[Source "ChessBase"]
[SourceQuality "1"]
[WhiteTeam "Guam"]
[BlackTeam "Malta"]
[WhiteTeamCountry "GMA"]
[BlackTeamCountry "MLT"]
[TimeControl "40/5400+30:1800+30"]

1. e4 c5 2. Nf3 Nc6 3. d4 cxd4 4. Nxd4 g6 5. Be3 Nf6 6. Nc3 Bg7 7. Nxc6 bxc6 8. e5 Ng8 9. f4 Nh6 10. Bc4 O-O 11. Ne4 d5 12. exd6 exd6 13. Qxd6 Qe8 14. Qb4 Ng4 15. Ke2 c5 16. Qxc5 Qxe4 17. Bd5 Ba6+ 18. c4 Bxc4+ 19. Bxc4 Qxg2+ 0-1

[Event "45th FIDE Olympiad 2024"]
[Site "Budapest"]
[Date "2024.09.12"]
[Round "2.250"]
[White "Darmanin, Jake"]
[Black "Tran, Tuan An"]
[Result "1/2-1/2"]
[ECO "C01"]
[WhiteElo "2119"]
[BlackElo "1916"]
[Annotator "NA"]
[PlyCount "92"]
[EventDate "2024.09.05"]
[EventType "team-tourn"]
[EventCountry "HUN"]
[SourceTitle "playchess.com"]
[Source "ChessBase"]
[SourceQuality "1"]
[WhiteTeam "Malta"]
[BlackTeam "Guam"]
[WhiteTeamCountry "MLT"]
[BlackTeamCountry "GMA"]
[TimeControl "40/5400+30:1800+30"]

1. e4 e6 2. d4 d5 3. Nc3 Bb4 4. exd5 exd5 5. Bd3 Nf6 6. Nge2 c6 7. O-O O-O 8. Bg5 Nbd7 9. Ng3 h6 10. Bf4 Re8 11. h3 Nf8 12. Qf3 Bd6 13. Nce2 Ne4 14. Nxe4 dxe4 15. Bxe4 Bxf4 16. Nxf4 Qxd4 17. Rae1 Ne6 18. c3 Qf6 19. Nxe6 Qxf3 20. Bxf3 Bxe6 21. b3 a5 22. Re3 a4 23. Rfe1 Kf8 24. c4 axb3 25. axb3 Red8 26. h4 g5 27. hxg5 hxg5 28. Kh2 Ra2 29. R1e2 Rdd2 30. Kg3 Rxe2 31. Bxe2 Kg7 32. f4 gxf4+ 33. Kxf4 Kf6 34. g4 Rd2 35. g5+ Ke7 36. Bd3 Rf2+ 37. Kg3 Rd2 38. g6 fxg6 39. Bxg6 Kf6 40. Be4 Rb2 41. Kf4 b5 42. Bxc6 bxc4 43. bxc4 Bxc4 44. Rc3 Rb4 45. Ke3 Rb3 46. Rxb3 Bxb3 1/2-1/2

[Event "45th FIDE Olympiad 2024"]
[Site "Budapest"]
[Date "2024.09.12"]
[Round "2.251"]
[White "Mafnas, Peter"]
[Black "Mizzi, Jack"]
[Result "0-1"]
[ECO "A21"]
[WhiteElo "1886"]
[BlackElo "2053"]
[Annotator "NA"]
[PlyCount "56"]
[EventDate "2024.09.05"]
[EventType "team-tourn"]
[EventCountry "HUN"]
[SourceTitle "playchess.com"]
[Source "ChessBase"]
[SourceQuality "1"]
[WhiteTeam "Guam"]
[BlackTeam "Malta"]
[WhiteTeamCountry "GMA"]
[BlackTeamCountry "MLT"]
[TimeControl "40/5400+30:1800+30"]

1. c4 e5 2. Nc3 d6 3. g3 f5 4. Bg2 Nf6 5. d3 Be7 6. e3 O-O 7. Nge2 c6 8. O-O Be6 9. b3 Nbd7 10. d4 Rc8 11. d5 Bf7 12. dxc6 bxc6 13. Ba3 Nb6 14. Rc1 d5 15. c5 Bg6 16. Qd2 Nbd7 17. Na4 Ne4 18. Qe1 Bg5 19. f4 Bh6 20. Bb4 Qe7 21. Nec3 Ndf6 22. Nxe4 Nxe4 23. Nc3 Nf6 24. Qe2 Qb7 25. Ba5 Rce8 26. Qd3 Qe7 27. Rfe1 exf4 28. exf4 Qxc5+ 0-1

[Event "45th FIDE Olympiad 2024"]
[Site "Budapest"]
[Date "2024.09.12"]
[Round "2.252"]
[White "Zerafa, Patrick"]
[Black "Doria, Daniel"]
[Result "1-0"]
[ECO "A14"]
[WhiteElo "1986"]
[BlackElo "1745"]
[Annotator "NA"]
[PlyCount "152"]
[EventDate "2024.09.05"]
[EventType "team-tourn"]
[EventCountry "HUN"]
[SourceTitle "playchess.com"]
[Source "ChessBase"]
[SourceQuality "1"]
[WhiteTeam "Malta"]
[BlackTeam "Guam"]
[WhiteTeamCountry "MLT"]
[BlackTeamCountry "GMA"]
[TimeControl "40/5400+30:1800+30"]

1. d4 d5 2. Nf3 Nf6 3. g3 e6 4. Bg2 Be7 5. O-O O-O 6. b3 c5 7. Bb2 Nc6 8. c4 dxc4 9. bxc4 cxd4 10. Nxd4 Nxd4 11. Bxd4 Qc7 12. Qb3 Rd8 13. Bb2 Bd7 14. Na3 a6 15. Rac1 Bc6 16. Nb5 Qc8 17. Nd4 Bxg2 18. Kxg2 Bc5 19. Rfd1 e5 20. Nf3 Rxd1 21. Rxd1 e4 22. Nd4 b6 23. h3 Qb7 24. Nf5 Be7 25. Nxe7+ Qxe7 26. Qxb6 Ne8 27. Rd5 Qc7 28. Qxc7 Nxc7 29. Re5 Re8 30. Rxe8+ Nxe8 31. Be5 f6 32. Bb8 Kf7 33. f3 exf3+ 34. Kxf3 Ke6 35. Ke4 f5+ 36. Kd4 Nf6 37. Bf4 Kd7 38. Kc5 g5 39. Be5 Ne4+ 40. Kd5 h5 41. c5 h4 42. c6+ Kc8 43. gxh4 gxh4 44. e3 Nf2 45. Bf6 Nxh3 46. Bxh4 f4 47. exf4 Nxf4+ 48. Kc5 Nd3+ 49. Kb6 Nb4 50. a4 Nd5+ 51. Kc5 Nc3 52. a5 Na4+ 53. Kd6 Nb2 54. Be1 Nd3 55. Bc3 Kd8 56. Be5 Kc8 57. Bg3 Nb2 58. Kd5 Nd3 59. Kc4 Nb2+ 60. Kd4 Kd8 61. Kc3 Nd1+ 62. Kb4 Nb2 63. Bd6 Kc8 64. Kb3 Nd3 65. Kc3 Nc1 66. Kc4 Ne2 67. Kc5 Nc3 68. Kb6 Nb5 69. Be5 Nc7 70. Ka7 Nb5+ 71. Kxa6 Nc7+ 72. Bxc7 Kxc7 73. Kb5 Kc8 74. Kc5 Kc7 75. a6 Kb8 76. Kd6 Ka8 1-0

[Event "45th FIDE Olympiad 2024"]
[Site "Budapest"]
[Date "2024.09.12"]
[Round "2.253"]
[White "Ortega Amarelle, Mariano"]
[Black "Tchouka, Yakini"]
[Result "1-0"]
[ECO "A07"]
[WhiteElo "2453"]
[BlackElo "1932"]
[Annotator "TA"]
[PlyCount "67"]
[EventDate "2024.09.05"]
[EventType "team-tourn"]
[EventCountry "HUN"]
[SourceTitle "playchess.com"]
[Source "ChessBase"]
[SourceQuality "1"]
[WhiteTeam "Cape Verde"]
[BlackTeam "Togo"]
[BlackTeamCountry "TOG"]
[TimeControl "40/5400+30:1800+30"]

{[%evp 14,67,10,15,26,10,17,7,13,10,20,0,0,-64,0,0,0,0,0,0,0,0,0,-15,0,0,0,0,0,0,0,-25,43,0,14,0,25,0,11,0,0,0,4,-67,122,115,110,128,1562,1538,29997,29992,29994,29994,29994,29995]} 1. Nf3 d5 2. g3 Nf6 3. Bg2 e6 4. O-O Be7 5. d3 {[%cal Bd2d3,Bd3e4,Be4e5][%mdl 32]} O-O 6. Nbd2 b6 7. e4 dxe4 8. dxe4 Bb7 9. e5 Nfd7 10. Qe2 Nc6 {The position is equal.} 11. Rd1 Qc8 12. h4 Rd8 13. b3 ({Better is} 13. Nc4 $11) 13... a5 (13... Ncxe5 $15 14. Nxe5 Nxe5) 14. Bb2 a4 15. Ne4 axb3 16. axb3 {[%cal Ba2b3,Bb3b4,Bb4b5][%mdl 32]} Rxa1 17. Rxa1 h6 18. Bc3 Nc5 {Strongly threatening ...Nxe4.} 19. Ned2 Bf8 20. b4 Nd7 21. b5 Ne7 22. Ne4 Nd5 (22... Nf5 $11) 23. Bd4 Nc5 24. Bxc5 Bxc5 25. Rd1 Be7 26. Nd4 Qa8 27. Qg4 Kf8 {[%cal Od5f4]} 28. Rd3 ({White should try} 28. Kh2 $11) 28... Nb4 $2 {[#]} (28... Nf4 $1 $15 {stays ahead.} 29. Rf3 Ne2+ (29... Bxe4 30. Rxf4 Qa1+ 31. Kh2 $16) 30. Nxe2 Bxe4 31. Rxf7+ Kxf7 32. Bxe4 Qa1+ 33. Kg2 Qxe5) 29. Nxe6+ $1 $16 {[%mdl 512]} fxe6 30. Rf3+ {[%cal Bd3f3,Bf3f7,Bf7g7][%mdl 32]} Ke8 $2 {[%mdl 8192] [#] A mistake that costs the game.} (30... Kg8 $16 31. Qxe6+ Kh8 32. Qxe7 Bxe4) 31. Qxe6 $1 $18 {Intending Qg8+ and mate.} Bxe4 (31... Rd1+ 32. Kh2) 32. Rf7 {[%csl Gf7][%cal Re6e7] White mates.} Rd7 33. Rxg7 {[%cal Rg7g8]} Qa1+ 34. Kh2 {Weighted Error Value: White=0.16 (very precise) /Black=0.46.  Loses game:     	---       	Black=1      Mistake:       	White=2     	Black=3      Inaccurate:     	White=1     	Black=1      OK:         	White=5     	Black=10     Best:        	White=1     	---        Brilliant:      	White=1     	---} 1-0

[Event "45th FIDE Olympiad 2024"]
[Site "Budapest"]
[Date "2024.09.12"]
[Round "2.254"]
[White "Egbe, Kossi Thierry"]
[Black "Alho, Diogo"]
[Result "0-1"]
[ECO "B06"]
[WhiteElo "1847"]
[BlackElo "2192"]
[Annotator "ChessBase"]
[PlyCount "82"]
[EventDate "2024.09.05"]
[EventType "team-tourn"]
[EventCountry "HUN"]
[SourceTitle "playchess.com"]
[Source "ChessBase"]
[SourceQuality "1"]
[WhiteTeam "Togo"]
[BlackTeam "Cape Verde"]
[WhiteTeamCountry "TOG"]
[TimeControl "40/5400+30:1800+30"]

1. e4 g6 2. d4 Bg7 3. f4 c6 4. Nf3 d5 5. e5 Bf5 6. c4 e6 7. Be3 Ne7 8. c5 b6 9. b4 a5 10. Qa4 O-O 11. Nbd2 b5 12. Qb3 axb4 13. Qxb4 Ra4 14. Qb2 Na6 15. Kf2 f6 16. Be2 Nb4 17. Rhc1 Nd3+ 18. Bxd3 Bxd3 19. Rc3 Bc4 20. Ra3 Qa8 21. Rxa4 Qxa4 22. Kg1 Ra8 23. Nxc4 dxc4 24. Bd2 Nd5 25. exf6 Bxf6 26. Ne5 Bxe5 27. fxe5 Qa3 28. Qc2 c3 29. Bc1 Qb4 30. Qe4 Ra4 31. Be3 Nxe3 32. Qxc6 Qxd4 33. Qxe6+ Kg7 34. Qe7+ Kh6 35. Qf8+ Kh5 36. Qf3+ Ng4+ 37. Kh1 c2 38. Rf1 Qe3 39. Qf7 c1=Q 40. Qxh7+ Nh6 41. g4+ Rxg4 0-1

[Event "45th FIDE Olympiad 2024"]
[Site "Budapest"]
[Date "2024.09.12"]
[Round "2.255"]
[White "Mirulla, David"]
[Black "Amewounou, Komlan Kouessan"]
[Result "1-0"]
[ECO "C54"]
[WhiteElo "1904"]
[BlackElo "1825"]
[Annotator "NA"]
[PlyCount "55"]
[EventDate "2024.09.05"]
[EventType "team-tourn"]
[EventCountry "HUN"]
[SourceTitle "playchess.com"]
[Source "ChessBase"]
[SourceQuality "1"]
[WhiteTeam "Cape Verde"]
[BlackTeam "Togo"]
[BlackTeamCountry "TOG"]
[TimeControl "40/5400+30:1800+30"]

1. e4 e5 2. Nf3 Nc6 3. Bc4 Nf6 4. d3 h6 5. O-O Bc5 6. c3 Bb6 7. a4 a5 8. Qb3 O-O 9. Na3 Qe7 10. Nc2 d6 11. Be3 Bxe3 12. Nxe3 g6 13. Rae1 b6 14. Nd5 Qd8 15. d4 Bd7 16. dxe5 dxe5 17. Qc2 Kg7 18. Rd1 Qc8 19. Rd2 Be6 20. Rfd1 Nd7 21. Ne7 Nxe7 22. Bxe6 fxe6 23. Rxd7 Qe8 24. Nxe5 Kh8 25. Rxe7 Qb8 26. Rdd7 Rf6 27. Rh7+ Kg8 28. Rdg7+ 1-0